{"text_format":"1","workbook":"xlsx","n_sheets":3,"sheets":["apuntes","ESCRITURA","Hoja1"],"not_rendered":{"charts":0,"images":6,"macros":1,"external_links":0,"defined_names":0,"comments":0,"pivot_tables":0},"unopened":[],"bounds":{"document_bytes":16777216,"sheet_cells":100000,"rows_first":2000,"rows_last":500,"rows_between":2000,"halvings":0,"cell_chars":16384,"cell_head_chars":4096},"cells_cut":0,"cells_raw":0,"read":"whole","date_system":"1900"}

{"sheet":"apuntes","index":0,"n_rows":1337,"n_cols":4,"rows_kept":1337,"cut":false,"hidden":true,"merged":[]}
[null,"bien escrito"]
[1,"Comieron sopa, pescado, huevos y postre.","Comieron sopa pescado huevos y postre.","se separaran por medio de coma. Las palabras de igual clase en la misma oración, menos cuando vayan unidas por las conjunciones y,e,ni,o,u"]
[{"$f":"A2+1","v":2},"He comprado los vasos, cucharas y tenedores.","He comprado los vasos cucharas y tenedores."]
[{"$f":"A3+1","v":3},"Pero aún nos faltan los platos, tazas, pucheros, etc.","Pero aun nos faltan los platos tazas pucheros etc.","antes de etc. Se pondrá coma si va al  final. Caso de ir en medio se pondrá coma antes y después"]
[4,"No quiero esto ni aquello. Quiero el libro o la revista.","No quiero esto ni aquello quiero el libro o la revista.","se separaran por medio de coma. Las palabras de igual clase en la misma oración, menos cuando vayan unidas por las conjunciones y,e,ni,o,u"]
[5,"Los nombres de Juan, Antonio, Luis, Carlos, etc., son corrientes.","Los nombres de Juan Antonio Luis Carlos etc. son corrientes.","antes de etc. Se pondrá coma si va al  final. Caso de ir en medio se pondrá coma antes y después según la coma hace variar algunas veces el significado"]
[6,"Han montado un negocio para la venta de cereales, legumbres, aceites, piensos, jabones, etc.","Han montado un negocio para la venta de cereales legumbres aceites piensos jabones etc."]
[7,"Las lenguas más extendidas son: el inglés, el francés, el español y el alemán.","Las lenguas mas extendidas son el ingles el frances el español y el aleman."]
[8,"Me gustaría vivir en Madrid, Barcelona, Sevilla o Bilbao.","Me gustaria vivir en Madrid Barcelona Sevilla o Bilbao."]
[9,"Pregunté a José María y Luis que preferían y me contestaron: Quedarnos, no marcharnos.","Pregunte a Jose Maria y Luis que preferian y me contestaron Quedarnos no marcharnos.","según la coma hace variar algunas veces el significado    quedarnos, no marcharnos     quedarnos no, marcharnos"]
[10,"Antes de ocupar el cargo has de dominar la ortografía, la mecanografía, la contabilidad, el cálculo, etc.","Antes de ocupar el cargo has de dominar la ortografia la mecanografia la contabilidad el calculo etc."]
[11,"Pereda, Galdós, Benavente, etc., son ejemplos de genio literario español.","Pereda Galdos Benavente etc. son ejemplos de genio literario español."]
[12,"Inglaterra, Estados Unidos, Alemania y Bélgica son grandes productores de carbón.","Inglaterra Estados Unidos Alemania y Belgica son grandes productores de carbon."]
[13,"Don Miguel de Cervantes el escritor de El Quijote, es considerado por muchos el creador de la novela moderna.","Don Miguel de Cervantes el escritor de El Quijote es considerado por muchos el creador de la novela moderna."]
[14,"El alumno, de origen catalán, mostró una interesante visión sobre el nacionalismo.","El alumno de origen catalan mostro una interesante vision sobre el nacionalismo.","En este caso, ya se sabe de qué alumno se está hablando y se explica que es de origen catalán."]
[15,"Todos los trabajadores, excepto los del sindicato, fueron readmitidos.","Todos los trabajadores excepto los del sindicato fueron readmitidos."]
[16,"Todos vinieron a la fiesta: Pedro, Juan, María, César y Cristina.","Todos vinieron a la fiesta Pedro Juan Maria Cesar y Cristina."]
[17,"Metí en la maleta todo lo necesario: neceser, ropa, libros para el viaje, etc.","Meti en la maleta todo lo necesario neceser ropa libros para el viaje etc."]
[18,"Me felicitaron todos mis amigos: Alberto, Gema, Alejandro, María...","Me felicitaron todos mis amigos Alberto Gema Alejandro Maria..."]
[19,"Brindo por ti, por mí; y por todos los que han venido.","Brindo por ti por mi y por todos los que han venido."]
[20,"El ruido era estridente, ensordecedor, y causaba la locura de todo el que lo escuchaba.","El ruido era estridente ensordecedor y causaba la locura de todo el que lo escuchaba."]
[21,"En el armario colocó los pantalones; en el cajón, los calcetines; en los estantes, los zapatos, y los complementos, no los colocó.","En el armario coloco los pantalones en el cajon los calcetines en los estantes los zapatos y los complementos no los coloco."]
[22,"Sebastián, te he dicho que vengas.","Sebastian te he dicho que vengas."]
[23,"Ya tiene usted un aviso, Martínez.","Ya tiene usted un aviso Martínez.","a la persona que nos dirigimos"]
[24,"Sí, señor.","Si señor.","a la persona que nos dirigimos"]
[25,"Belén, Pedro y Juan van a ir a la cena; Cristina y María, no.","Belen Pedro y Juan van a ir a la cena Cristina y Maria no."]
[26,"Los que están aprobados, por ahí.","Los que estan aprobados por ahi.","Se escribe coma cuando el verbo se omite por haber sido mencionado con anterioridad:"]
[27,"Lo arregló un aficionado hace un año. Lo hizo bien, sin embargo; todavía me funciona.","Lo arreglo un aficionado hace un año lo hizo bien sin embargo todavia me funciona."]
[28,"Hoy lloverá; por ello, mejor no salimos de excursión.","Hoy llovera por ello mejor no salimos de excursion."]
[29,"No es mi libro preferido, pero me gusta.","No es mi libro preferido pero me gusta."]
[30,"Ya es tarde; pero me quedo un poco más.","Ya es tarde pero me quedo un poco mas.","No se escribe coma detrás de pero:"]
[31,"Ya es tarde; pero, ya que me lo pides, me quedo un poco más.","Ya es tarde pero ya que me lo pides me quedo un poco mas.","No se escribe coma detrás de pero por significar  ya que"]
[32,"Pero...¿qué me dices?","Pero...¿que me dices?","No se escribe coma detrás de pero:  Sí la puede llevar si va seguido de un inciso:"]
[33,"Pero...¡ no puede ser !","Pero...¡ no puede ser !","Cuando (pero) precede a una construcción interrogativa o exclamativa no se pone coma; se pueden utilizar puntos suspensivos:"]
[34,"Tu trabajo no está completo así que es mejor que lo repitas.","Tu trabajo no esta conpleto asi que es mejor que lo repitas.","Cuando pero precede a una construcción interrogativa o exclamativa no se pone coma; se pueden utilizar puntos suspensivos:"]
[35,"Aunque había estudiado, no aprobé el examen.","Aunque habia estudiado no aprobe el examen.","no se coloca coma detrás de     aunque    ni de     así que:"]
[36,"Le dije que se fuera, y no hizo caso.","Le dije que se fuera y no hizo caso.","º"]
[37,"El descuento será aplicable en cualquier tarifa, excepto en las de grupos.","El descuento sera aplicable en cualquier tarifa excepto en las de grupos.","Si la conjunción (y) posee valor adversativo (equivalente a pero), puede ir precedida de coma:"]
[38,"Estoy disponible todos los días, salvo el último jueves del mes.","Estoy disponible todos los dias salvo el ultimo jueves del mes.","delante de    excepto / salvo / menos  "]
[39,"Puedes hacer con ello lo que quieras, menos regalarlo.","Puedes hacer con ello lo que quieras menos regalarlo.","delante de    excepto / salvo / menos  "]
[40,"Muerto el perro, se acabó la rabia.","Muerto el perro se acabo la rabia.","delante de    excepto / salvo / menos  "]
[41,"Durante aquellos intensos primeros años de casados, el tiempo pasaba lentamente.","Durante aquellos intensos primeros años de casados el tiempo pasaba lentamente."]
[42,"Si no sabes qué hacer, no vengas con nosotros.","Si no sabes que hacer no vengas con nosotros."]
[43,"El novio, los parientes, los invitados, etc., esperaban ya la llegada de la novia.","El novio los parientes los invitados etc. esperaban ya la llegada de la novia.","no vengas con nostros, si no sabes que hacer (invertiendo el sentido)"]
[44,"Mi hermano, como tú sabes, es un magnífico deportista.","Mi hermano como tu sabes es un magnifico deportista."]
[45,"Creía que telefonearía, telegrafiaría o escribiría.","Creia que telefonearia telegrafiaria o escribiria."]
[46,"Sueñas con excursiones, fiestas, novelas, partidos, etc., sin pensar que así no triunfarás en la vida.","Sueñas con excursiones fiestas novelas partidos etc. sin pensar que asi no triunfaras en la vida."]
[47,"La gramática se divide en cuatro partes: prosodia, morfologia, sintaxis y ortografía.","La gramatica se divide en cuatro partes prosodia morfologia sintaxis y ortografia."]
[48,"Para reponerte necesitas comer bien, trabajar poco, dormir mucho y distraerte.","Para reponerte necesitas comer bien trabajar poco dormir mucho y distraerte."]
[49,"Necesitamos adquirir telas, algodón e hilo.","Necesitamos adquirir telas algodon e hilo."]
[50,"No me importa que seas alto, bajo o regular.","No me importa que seas alto bajo o regular."]
[51,"Era joven, educado, correcto, amable y servicial.","Era joven educado correcto amable y servicial."]
[52,"Caja, mobiliario, mercaderias, maquinaría, etc., son cuentas muy usadas en contabilidad.","Caja mobiliario mercaderias maquinaria etc. son cuentas muy usadas en contabilidad."]
[53,"Juan es bueno y Pedro, malo.","Juan es bueno y Pedro malo."]
[54,"Tenemos que prepararnos, debemos aprender, necesitamos trabajar, si queremos progresar en la vida.","Tenemos que prepararnos debemos aprender necesitamos trabajar si queremos progresar en la vida.","se usa coma cuando el verbo esté sobrentendido"]
[55,"Amigo Pedro, debes cuidarte.","Amigo Pedro debes cuidarte.","se utilizará la coma para separar oraciones de ua misma cláusula, aunque vayan unidas por una conjunción"]
[56,"No comprendo, María, como dices eso.","No comprendo Maria como dices eso.","El nombre de la persona a quien nos dirigimos (vocativo) y las palabras que la acompañan, van seguidas de coma cuando están al principio; entre comas si están en medio y precedidas al final"]
[57,"Es necesario que vuelvas pronto, querido Antonio.","Es necesario que vuelvas pronto querido Antonio.","El nombre de la persona a quien nos dirigimos (vocativo) y las palabras que la acompañan, van seguidas de coma cuando están al principio; entre comas si están en medio y precedidas al final"]
[58,"Si no estudias, dijo el padre, no saldrás a pasear.","Si no estudias dijo el padre no saldras a pasear.","El nombre de la persona a quien nos dirigimos (vocativo) y las palabras que la acompañan, van seguidas de coma cuando están al principio; entre comas si están en medio y precedidas al final"]
[59,"Este libro, que es una Geografía, vale veinte pesetas.","Este libro que es una Geografia vale veinte pesetas.","Se pondrá coma antes y después de las oraciones intercaladas, especialmente de las explicativas precedidas del pronombre (que)"]
[60,"El defecto estaba, pues, en el carburador. Necesitamos, por consiguiente, repasarlo antes de partir.","El defecto estaba pues en el carburador  necesitamos por consiguiente repasarlo antes de partir.","Se pondrá coma antes y después de las oraciones intercaladas, especialmente de las explicativas precedidas del pronombre (que)"]
[61,"No comprendí nada, pues estaba demasiado lejos.","No comprendi nada pues estaba demasiado lejos.","Se colocará coma antes y después de (pues) y(también) de finalmente, es decir, de modo que, en efecto, en consecuencia, ya que, sin embargo y  otras expresiones similares."]
[62,"Al regresar del campo, jugaremos en la plaza.","Al regresar del campo jugaremos en la plaza.","Se colocará coma antes y después de (pues) y(también) de finalmente, es decir, de modo que, en efecto, en consecuencia, ya que, sin embargo y otras ...expresiones similares. Cuando (pues) significa (ya que) sólo se pondrá coma delante"]
[63,"Donde menos lo piensas, lo hallarás.","Donde menos lo piensas lo allaras.","Cuando se invierte en el orden regular, se pondrá coma después de la parte adelantada"]
[64,"Dos horas estuvimos explicándoles el mecanismo de la nueva máquina; pero no parecieron comprenderlo del todo.","Dos horas estuvimos explicandoles el mecanismo de la nueva maquina pero no parecieron conprenderlo del todo.","Cuando se invierte en el orden regular, se pondrá coma después de la parte adelantada"]
[65,"Les escribí dos veces, mas no contestaron.","Les escribi dos veces mas no contestaron.","Se pondrá punto y coma antes de las conjunciones adversativas (más, pero, sin embargo, aunque, no obstante, etc., en periodos de alguna extensión. Si estos fuesen cortos bastará coma."]
[66,"Por causas ajenas a nosotros, se ha producido un error lamentable que afecta a alguno de nuestros clientes, entre los que pensamos podría encontrarse usted.","Por causas ajenas a nosotros se a producido un error lamentable que afecta a alguno de nuestros clientes entre los que pensamos podria encontrarse usted.","Se pondrá punto y coma antes de las conjunciones adversativas (más, pero, sin embargo, aunque, no obstante, etc., en periodos de alguna extensión. Si estos fuesen cortos bastará coma."]
[{"$f":"A67+1","v":67},"Algunos de mis clientes habituales se ha interesado por un tipo de productos que ustedes fabrican, y de los cuales yo no tenía referencia hasta el momento. Al parecer, se trata de pinturas de interior, de tipo esmalte y resistentes al agua.","Algunos de mis clientes abituales se a interesado por un tipo de productos que ustedes fabrican y de los cuales yo no tenia referencia hasta el momento al parecer se trata de pinturas de interior de tipo esmalte y resistentes al agua."]
[68,"Necesito que me envíen toda la información posible sobre dichas pinturas: características técnicas, gamas de colores, tamaños de envase y, ¡como no!, lista de precios.","Necesito que me envien toda la informacion posible sobre dichas pinturas caracteristicas tecnicas gamas de colores tamaños de envase y como no lista de precios."]
[69,"Distinguidos señores:","Distinguidos señores"]
[70,"Desde hace más de diez años me dedico a la venta al por menor de artículos de perfumería y droguería, y entre ellos, las pinturas.","Desde hace mas de diez años me dedico a la venta al por menor de articulos de perfumeria y drogueria y entre ellos las pinturas."]
[71,"Creo que podría interesarme la distribución de sus productos en mi establecimiento, siempre que las condiciones que ustedes me ofrezcan sean aceptables.","Creo que podria interesarme la distribucion de sus productos en mi establecimiento siempre que las condiciones que ustedes me ofrezcan sean aceptables."]
[72,"Confío en que me enviarán, lo antes posible, toda la información sobre: Tipos de pinturas. Características y aplicaciones.","Confio en que me enviaran lo antes posible toda la informacion sobre tipos de pinturas caracteristicas y aplicaciones."]
[73,"También necesito conocer otros aspectos relacionados con las compras, como son: Formas y plazos de envío.","Tanbien necesito conocer otros aspectos relacionados con las compras como son formas y plazos de envio."]
[74,"Pronto se construirá la nueva estación, según dicen.","Pronto se construira la nueva estacion segun dicen."]
[75,"Saldré de paseo, cuando acabe este trabajo.","Saldre de paseo cuando acabe este trabajo.","Cuando se invierte en el orden regular, se pondrá coma después de la parte adelantada"]
[76,"Las aleaciones de mercurio con otros metales, llamánse amalgamas.","Las aleaciones de mercurio con otros metales llamanse amalgamas.","Cuando se invierte en el orden regular, se pondrá coma después de la parte adelantada"]
[77,"Por inútil, causó baja en el ejercito.","Por inutil causo baja en el ejercito.","Cuando se invierte en el orden regular, se pondrá coma después de la parte adelantada"]
[78,"Si tuviera más dinero, compraría aquel reloj.","Si tuviera mas dinero compraria aquel reloj.","Cuando se invierte en el orden regular, se pondrá coma después de la parte adelantada"]
[79,"Compraría aquel reloj, si tuviera más dinero.","Compraria aquel reloj si tuviera mas dinero.","Cuando se invierte en el orden regular, se pondrá coma después de la parte adelantada"]
[80,"Si no vienes, no comerás.","Si no vienes no comeras.","Cuando se invierte en el orden regular, se pondrá coma después de la parte adelantada"]
[81,"Cuando llega el invierno, muchas aves emigran.","Cuando llega el invierno muchas aves emigran.","Cuando se invierte en el orden regular, se pondrá coma después de la parte adelantada"]
[82,"Muchas aves emigran, cuando llega el invierno.","Muchas aves emigran cuando llega el invierno.","Cuando se invierte en el orden regular, se pondrá coma después de la parte adelantada"]
[83,"En este tren, iremos a Granada.","En este tren iremos a Granada.","Cuando se invierte en el orden regular, se pondrá coma después de la parte adelantada"]
[84,"A él y no a otro, le toca escribir.","A el y no a otro le toca escribir.","Cuando se invierte en el orden regular, se pondrá coma después de la parte adelantada"]
[85,"Le toca escribir, a él y no a otro.","Le toca escribir a el y no a otro.","Cuando se invierte en el orden regular, se pondrá coma después de la parte adelantada"]
[86,"Sin decir palabra, se levantaron los comensales.","Sin decir palabra se levantaron los comensales.","Cuando se invierte en el orden regular, se pondrá coma después de la parte adelantada"]
[87,"Se levantaron los comensales, sin decir palabra.","Se levantaron los comensales sin decir palabra.","Cuando se invierte en el orden regular, se pondrá coma después de la parte adelantada"]
[88,"Cansado de esperar y mirar el reloj, me marché a casa de mis padres.","Cansado de esperar y mirar el reloj me marche a casa de mis padres.","Cuando se invierte en el orden regular, se pondrá coma después de la parte adelantada"]
[89,"Me marché a casa de mis padres, cansado de esperar y mirar el reloj.","Me marche a casa de mis padres cansado de esperar y mirar el reloj.","Cuando se invierte en el orden regular, se pondrá coma después de la parte adelantada"]
[90,"Por no haber atendido los consejos de su padre, Luis sufrió muchos accidentes.","Por no haber atendido los consejos de su padre Luis sufrio muchos accidentes.","Cuando se invierte en el orden regular, se pondrá coma después de la parte adelantada"]
[91,"Luis sufrió muchos accidentes, por no haber atendido los consejos de su padre.","Luis sufrio muchos accidentes por no haber atendido los consejos de su padre.","Cuando se invierte en el orden regular, se pondrá coma después de la parte adelantada"]
[92,"Cuando llegamos a la cima, estábamos cansados y molidos; pero la vista de un panorama encantador nos reanimó.","Cuando llegamos a la cima estabamos cansados y molidos pero la vista de un panorama encantador nos reanimo.","Cuando se invierte en el orden regular, se pondrá coma después de la parte adelantada"]
[93,"Es conveniente que la habitación esté caldeada; pues el tiempo es frío y; sin embargo hay que procurar que exista buena ventilación.","Es conveniente que la habitacion este caldeada pues el tiempo es frio y sin embargo hay que procurar que exista buena ventilacion.","Cuando se invierte en el orden regular, se pondrá coma después de la parte adelantada"]
[94,"Lo tengo todo preparado; sin embargo no marcharé.","Lo tengo todo preparado sin embargo no marchare.","Se pondrá punto y coma antes de las conjunciones adversativas (más, pero, sin embargo, aunque, no obstante, etc., en periodos de alguna extensión. Si estos fuesen cortos bastará coma."]
[95,"Guárdate bien de los que sean tus enemigos; pero guárdate mejor de los que dicen ser tus amigos.","Guardate bien de los que sean tus enemigos pero guardate mejor de los que dicen ser tus amigos.","Se pondrá punto y coma antes de las conjunciones adversativas (más, pero, sin embargo, aunque, no obstante, etc., en periodos de alguna extensión. Si estos fuesen cortos bastará coma."]
[96,"Procuraremos complacerle y estudiaremos de nuevo su petición; mas creemos que será difícil contestar afirmativamente.","Procuraremos complacerle y estudiaremos de nuevo su peticion mas creemos que sera dificil contestar afirmativamente.","Se pondrá punto y coma antes de las conjunciones adversativas (más, pero, sin embargo, aunque, no obstante, etc., en periodos de alguna extensión. Si estos fuesen cortos bastará coma."]
[97,"Me vio; mas no me dijo nada.","Me vio mas no me dijo nada.","Se pondrá punto y coma antes de las conjunciones adversativas (más, pero, sin embargo, aunque, no obstante, etc., en periodos de alguna extensión. Si estos fuesen cortos bastará coma."]
[98,"Los cálculos estaban bien, la construcción se hizo a conciencia, el material era bueno; sin embargo la máquina no dio buen resultado.","Los calculos estaban bien la construcción se hizo a conciencia el material era bueno sin embargo la maquina no dio buen resultado.","Se pondrá punto y coma antes de las conjunciones adversativas (más, pero, sin embargo, aunque, no obstante, etc., en periodos de alguna extensión. Si estos fuesen cortos bastará coma."]
[99,"Ven cuando quieras; pero antes de las dos.","Ven cuando quieras pero antes de las dos.","Se pondrá punto y coma antes de las conjunciones adversativas (más, pero, sin embargo, aunque, no obstante, etc., en periodos de alguna extensión. Si estos fuesen cortos bastará coma."]
[100,"Estoy seguro de no haberme equivocado en las operaciones que acabo de entregarte; sin embargo las repasaré de nuevo para mayor seguridad.","Estoy seguro de no haberme equivocado en las operaciones que acabo de entregarte sin enbargo las repasare de nuevo para mayor seguridad.","Se pondrá punto y coma antes de las conjunciones adversativas (más, pero, sin embargo, aunque, no obstante, etc., en periodos de alguna extensión. Si estos fuesen cortos bastará coma."]
[101,"Si te comparas con los que tienen mucho pensarás que tienes poco; pero si miras a los que tienen poco creerás que tienen mucho.","Si te conparas con los que tienen mucho pensaras que tienes poco pero si miras a los que tienen poco creeras que tienes mucho.","Se pondrá punto y coma antes de las conjunciones adversativas (más, pero, sin embargo, aunque, no obstante, etc., en periodos de alguna extensión. Si estos fuesen cortos bastará coma."]
[102,"Bien está que quieras progresar y trabajes con ahinco para lograrlo; pero no conviene extralimitarse en este afán.","Bien esta que quieras progresar y trabajes con ahinco para lograrlo pero no conviene extralimitarse en este afan.","Se pondrá punto y coma antes de las conjunciones adversativas (más, pero, sin embargo, aunque, no obstante, etc., en periodos de alguna extensión. Si estos fuesen cortos bastará coma."]
[103,"Distinguidos señores: Rogamos tengan la bondad de...","distinguidos señores rogamos tengan la bondad de...","Se pondrá punto y coma antes de las conjunciones adversativas (más, pero, sin embargo, aunque, no obstante, etc., en periodos de alguna extensión. Si estos fuesen cortos bastará coma."]
[104,"Cisneros dijo: \"Esos son mis poderes\".","Cisneros dijo \"Esos son mis poderes\".","Los ( : ) dos puntos.  Después de las expresiones Muy señor mio, Apreciado amigo, etc., con que se empieza una carta"]
[105,"Hay tres clases de ángulos: agudos, rectos, y obtusos.","Hay tres clases de angulos agudos rectos y obtusos.","Los ( : ) dos puntos. Antes de citar palabras textuales"]
[106,"Es buena, honrada, virtuosa, caritativa, trabajadora: es una santa.","Es buena honrada virtuosa caritativa trabajadora es una santa.","Los ( : ) dos puntos. Cuando se sienta una preposición general y en seguida se enumera, comprueba y explica."]
[107,"Distinguidos señores: En contestación a su atenta del 24 de julio del 2010","Distinguidos señores en contestación a su atenta del 24 de julio del 2010","Los ( :) dos puntos. Antes del resumen o consecuencia de lo que se ha indicado."]
[108,"El año tiene cuatro estaciones: primavera, verano, otoño e invierno.","El año tiene cuatro estaciones primavera verano otoño e invierno.","Los ( : ) dos puntos.  Después de las expresiones Muy señor mio, Apreciado amigo, etc., con que se empieza una carta"]
[109,"El profesor nos dijo: aprended bien la regla y después podréis hacer el ejercicio.","El profesor nos dijo aprended bien la regla y despues podreis acer el ejercicio.","Los ( : ) dos puntos. Cuando se sienta una preposición general y en seguida se enumera, comprueba y explica."]
[110,"Un mal libro, un mal amigo, un mal ejemplo: los tres grandes enemigos de la juventud.","Un mal libro un mal amigo un mal ejemplo los tres grandes enemigos de la juventud.","Los ( :) dos puntos. Antes del resumen o consecuencia de lo que se ha indicado."]
[111,"Certificamos: que don Luis García, presta sus servicios en nuestra fábrica.","Certificamos que don Luis García presta sus servicios en nuestra fabrica.","Los ( :) dos puntos. Antes del resumen o consecuencia de lo que se ha indicado."]
[112,"Dos son los componentes del agua: hidrógeno y oxígeno.","Dos son los componentes del agua idrogeno y oxigeno.","Los ( : ) dos puntos.  Después de las expresiones Muy señor mio, Apreciado amigo, etc., con que se empieza una carta"]
[113,"Señoras y señores: en este día de feliz recuerdo nos hallamos reunidos...","Señoras y señores: en este dia de feliz recuerdo nos hallamos reunidos...","Los ( : ) dos puntos. Cuando se sienta una preposición general y en seguida se enumera, comprueba y explica."]
[114,"Los soldados valerosos serán recompensados: los cobardes serán castigados.","Los soldados valerosos seran reconpensados los cobardes seran castigados.","Los ( : ) dos puntos.  Después de las expresiones Muy señor mio, Apreciado amigo, etc., con que se empieza una carta"]
[115,"Las palabras agudas terminadas en s se acentúan: saldrás, Jesús, darás.","Las palabras agudas terminadas en s se acentuan saldras Jesus daras.","antes de b y p (m) pondré"]
[116,"Cortés, Pizarro y Balboa: tres colosos de la conquista de América.","Cortes Pizarro y Balboa tres colosos de la conquista de America."]
[117,"Dice un refrán: a Dios rogando y con el mazo dando.","Dice un refraán a Dios rogando y con el mazo dando."]
[118,"Trabaja poco y gasta mucho: pronto se arruinará.","Trabaja poco y gasta mucho pronto se arruinara."]
[119,"Un rey francés dijo: que ya no había Pirineos.","Un rey frances dijo que ya no habia Pirineos."]
[120,"Suplica: se digne autorizar la apertura del citado establecimiento.","Suplica se digne autorizar la apertura del citado establecimiento."]
[121,"La inflación, la subida de precios, el reajuste de salarios, la desvalorización monetaria: síntomas de un desbarajuste económico.","La inflacion la subida de precios el reajuste de salarios la desvalorizacion monetaria sintomas de un desbarajuste economico."]
[122,"Siete son los días de la semana: lunes, martes, miércoles, jueves, viernes, sábado y domingo.","Siete son los dias de la semana lunes martes miercoles jueves viernes sabado y domingo."]
[123,"Sé sobrio en la comida, come despacio, bebe poco alcohol, no tomes alimentos demasiado sazonados: así tendrás buena salud.","Sé sobrio en la comida come despacio bebe poco alcool no tomes alimentos demasiado sazonados asi tendras buena salud."]
[124,"Adjetivos calificativos son los que denotan alguna cualidad del nombre: bueno, ágil, azul, etc.","Adjetivos calificativos son los que denotan alguna cualidad del nonbre bueno agil azul etc."]
[125,"Tengo que terminar unas cartas, hacer varias facturas, repasar unas notas: no podré pasear hoy.","Tengo que terminar unas cartas hacer varias facturas repasar unas notas no podre pasear oy."]
[126,"Don Juan Linares, debe por arreglo de unas puertas: cuarenta pesetas.","Don Juan Linares debe por arreglo de unas puertas cuarenta pesetas."]
[127,"Distinguidos señores: Desde hace más de diez años…","Distinguidos señores desde hace mas de diez años…"]
[128,"Desde hace más de diez años me dedico a la venta al por menor de artículos de perfumería y droguería, y entre ellos, las pinturas.","Desde hace mas de diez años me dedico a la venta al por menor de articulos de perfumera y drogeria y entre ellos las pinturas."]
[129,"Creo que podría interesarme la distribución de sus productos en mi establecimiento, siempre que las condiciones que ustedes me ofrezcan sean aceptables.","Creo que podria interesarme la distribución de sus productos en mi establecimiento siempre que las condiciones que ustedes me ofrezcan sean aceptables."]
[130,"Confío en que me enviarán, lo antes posible, toda la información sobre:","Confio en que me enviaran lo antes posible toda la informacion sobre"]
[{"$f":"A131+1","v":131},"También necesito conocer otros aspectos relacionados con las compras, como son:","Tanbien necesito conocer otros aspectos relacionados con las compras como son"]
[132,"En la propia carta se detalla el pedido; por tanto, es necesario dar todos los detalles sobre la mercancía que se pide:","En la propia carta se detalla el pedido por tanto es necesario dar todos los detalles sobre la mercancia que se pide"]
[133,"Cuando se trata de un comprador habitual, y siempre que las condiciones asociadas a las compras, envíos, pagos, etc., no varíen, no será necesario repetirlas...","Cuando se trata de un comprador abitual y siempre que las condiciones asociadas a las compras envios pagos etc. no varien no sera necesario repetirlas..."]
[134,"En la escritura, las palabras no se presentan aisladas, sino formando parte de un conjunto en el que...","En la escritura las palabras no se presentan aisladas sino formando parte de un conjunto en el que..."]
[135,"La paralingüística, recordemos, es lo referente a la entonación, el modo de pronunciar las palabras, las pausas, etc., que, la mayoría de las veces, podemos también plasmar…","La paralingüística recordemos es lo referente a la entonación el modo de pronunciar las palabras las pausas etc. que la mayoría de las veces podemos también plasmar…"]
[136,"Podemos comparar a los signos de puntuación con las señales de tráfico, que nos indican las paradas obligatorias, los giros y cambios de sentido.","Podemos comparar a los signos de puntuacion con las señales de trafico que nos indican las paradas obligatorias los giros y cambios de sentido."]
[137,"Sirve para indicar pausas breves en la escritura. Se debe emplear para:","Sirve para indicar pausas breves en la escritura se debe emplear para"]
[138,"Tenemos a su disposición: tuercas, tornillos, arandelas y alambre.","Tenemos a su disposición tuercas tornillos arandelas y alambre."]
[139,"Quiero estudiar, aprender bien una profesión, hacerme un sitio en la vida y ser un profesional respetado.","Quiero estudiar aprender bien una profesión hacerme un sitio en la vida y ser un profesional respetado.","Sirve para indicar pausas breves en la escritura. Se debe emplear para: Separar elementos análogos en una enumeración. La última coma se sustituye por la conjunción (y)"]
[140,"La mercancía que le enviamos, correspondiente a su pedido número seis, está pendiente de pago.","La mercancia que le enviamos correspondiente a su pedido numero seis esta pendiente de pago.","Separar oraciones"]
[141,"Su solicitud, señora Solís, la atenderemos en cuanto nos sea posible.","Su solicitud señora Solís la atenderemos en cuanto nos sea posible.","Para introducir una oración explicativa"]
[142,"En el anterior pedido le enviamos doscientas piezas, en éste, sólo cien.","En el anterior pedido le enviamos doscientas piezas en este solo cien.","Para separar el nombre con que nos dirigimos a otra persona."]
[143,"La operación fue un éxito; estamos satisfechos.","La operacion fue un exito estamos satisfechos.","El verbo omitido se sustituye por la coma"]
[144,"Los grandes almacenes tenían cuatro plantas: primera, ferretería; segunda, electrodomésticos; tercera, menaje y cuarta sanitarios.","Los grandes almacenes tenían cuatro plantas primera ferretería segunda electrodomésticos tercera menaje y cuarta sanitarios.","Para separar frases que están relacionadas pero que no van unidas por un conjunción o una preposición."]
[145,"Repuestos, componentes, piezas; todo ellos puede encontrarlos en nuestro almacén.","Repuestos componentes piezas todo ellos puede encontrarlos en nuestro almacen.","En las enumeraciones en las que el uso de la coma puede causar confusiones."]
[146,"Dispone de todo el material escolar: libros, cuadernos, lápices…","Dispone de todo el material escolar libros cuadernos lapices","Para separar una oración que hace referencia a una serie de elementos citados anteriormente."]
[147,"Disponemos de: ordenador, impresora, máquina de escribir, fax…","Disponemos de ordenador impresora maquina de escribir fax…","puntos suspensivos (...)  en lugar de etc."]
[148,"Estimados señores: Les comunico que…","Estimados señores les comunico que…","los dos puntos (:) Para enumerar una serie de cosas"]
[149,"Los productos que le presento (únicos en el mercado) tienen la ventaja.","Los productos que le presento unicos en el mercado tienen la ventaja.","(:) Después de las fórmulas de saludo."]
[150,"Los productos que le presento, únicos en el mercado, tienen la ventaja…","Los productos que le presento únicos en el mercado tienen la ventaja…","el paréntesis () Se emplea para hacer un inciso dentro de la frase."]
[151,"Te digo Carmen, que no escribas.","Te digo Carmen que no escribas.","El inciso explicativo también puede ponerse entre comas, en vez de paréntesis ()"]
[152,"Juan, acércame el azúcar.","Juan acércame el azúcar.","El vocativo siempre va separado del resto de la oración por coma."]
[153,"Javier, te aconsejo prudencia.","Javier te aconsejo prudencia.","El vocativo siempre va separado del resto de la oración por coma."]
[154,"Tienes que dibujar cuadrados, triángulos, y circunferencias.","Tienes que dibujar cuadrados triángulos y circunferencias.","El vocativo siempre va separado del resto de la oración por coma."]
[155,"Compró guantes, bufandas y calcetines de abrigo.","Compró guantes bufandas y calcetines de abrigo.","Se escrib coma entre las palabras que forman enumeraciones y no van unidas por las conjunciones   y, e, ni, o."]
[156,"¿ Me podrías decir si ayer comimos plátanos, peras, naranjas o melocotones ?","¿ Me podrías decir si ayer comimos plátanos peras naranjas o melocotones ?","Se escrib coma entre las palabras que forman enumeraciones y no van unidas por las conjunciones   y, e, ni, o."]
[157,"Miraba los árboles que su abuelo había plantado, y recordaba los días felices de su niñez, y se sentía nostálgico.","Miraba los árboles que su abuelo había plantado y recordaba los días felices de su niñez y se sentía nostálgico.","Se escrib coma entre las palabras que forman enumeraciones y no van unidas por las conjunciones   y, e, ni, o."]
[158,"Caminaba por el valle, el sol relucía en lo alto, y el mar se veía a lo lejos.","Caminaba por el valle el sol relucía en lo alto y el mar se veía a lo lejos.","Cuando hay varias oraciones independientes, se escribe coma para separar unas de otras, vayan o no precedidas de conjunciones."]
[159,"Sus ojos, que eran oscuros y sinceros, no pasaron desapercibidos.","Sus ojos que eran oscuros y sinceros no pasaron desapercibidos.","Cuando hay varias oraciones independientes, se escribe coma para separar unas de otras, vayan o no precedidas de conjunciones."]
[160,"El jugador, cansado de recibir patadas, fue a protestar al árbitro.","El jugador cansado de recibir patadas fue a protestar al árbitro.","Se escriben entre comas las palabras aclaratorias o las subordinadas que están intercaladas en una oración."]
[161,"Miguel, que trabaja en el teatro, te traerá las entradas.","Miguel que trabaja en el teatro te traera las entradas.","Se escriben entre comas las palabras aclaratorias o las subordinadas que están intercaladas en una oración."]
[162,"La película es buena, es decir, tiene muchos valores artísticos.","La pelicula es buena es decir tiene muchos valores artisticos.","Se escriben entre comas las palabras aclaratorias o las subordinadas que están intercaladas en una oración."]
[163,"Os deseo, finalmente, que se cumplan todas vuestras aspiraciones.","Os deseo finalmente que se cumplan todas vuestras aspiraciones.","Se escribe delante de coma o entre comas expresiones como las siguientes: en efecto, sin embargo, etc."]
[164,"Donde hay buena cocinera, se come bien.","Donde hay buena cocinera se come bien.","Se escribe delante de coma o entre comas expresiones como las siguientes: en efecto, sin embargo, finalmente, etc."]
[165,"Al oír los gritos, acudieron todos.","Al oir los gritos acudieron todos.","Cuando en las oraciones compuestas se antepone la subordinada a la principal, se escribe coma entre ellas."]
[166,"A pesar de que jugaron bien, perdieron el partido.","A pesar de que jugaron bien perdieron el partido.","Cuando en las oraciones compuestas se antepone la subordinada a la principal, se escribe coma entre ellas."]
[167,"Yo iré a Valencia; Ana, a Mallorca; y Guillermo, a Málaga.","Yo ire a Valencia Ana a Mallorca y Guillermo a Malaga.","Cuando en las oraciones compuestas se antepone la subordinada a la principal, se escribe coma entre ellas."]
[168,"Tronco de higuera, mala madera.","Tronco de higuera mala madera.","En una oración, si se suprime el verbo porque está sobreentendido, se suple con una coma."]
[169,"José, me voy un momento.","José me voy un momento."]
[170,"Este verano hemos recorrido Francia, Italia, Austria, Suiza y Alemania.","Este verano hemos recorrido Francia Italia Austria Suiza y Alemania."]
[171,"Mira, Antonio, hazme caso, por favor.","Mira Antonio hazme caso por favor."]
[172,"Tu amiga es simpática, alegre, aplicada e inteligente.","Tu amiga es simpática alegre aplicada e inteligente."]
[173,"El río Ebro, que nace cerca de Reinosa, desemboca en el Mediterraneo.","El río Ebro que nace cerca de Reinosa desemboca en el Mediterraneo."]
[174,"París, es una ciudad cosmopolita.","Paris es una ciudad cosmopolita."]
[175,"Por último, vamos a explicar la geografía de España.","Por último vamos a explicar la geografía de España."]
[176,"Los romanos conquistaron la Península, es decir, la romanizaron.","Los romanos conquistaron la Peninsula es decir la romanizaron."]
[177,"La joven, viendo que no encontraba trabajo en su ciudad, se marchó de su casa.","La joven viendo que no encontraba trabajo en su ciudad se marchó de su casa."]
[178,"Si te das prisa, aún llegaremos a tiempo.","Si te das prisa aún llegaremos a tiempo."]
[179,"Puedes venir con nosotros, pero compórtate correctamente.","Puedes venir con nosotros pero compórtate correctamente."]
[180,"Aunque llueva, iremos al teatro.","Aunque llueva iremos al teatro."]
[181,"Según mi signo zodiacal, mi suerte va a cambiar.","Según mi signo zodiacal mi suerte va a cambiar."]
[182,"Me presenté al concurso, pero no tuve demasiado suerte.","Me presenté al concurso pero no tuve demasiado suerte."]
[183,"El mar estaba en calma, los pescadores recogían las redes, las voraces gaviotas revoloteaban en torno a las barcas.","El mar estaba en calma los pescadores recogían las redes las voraces gaviotas revoloteaban en torno a las barcas."]
[184,"Gato escaldado, del agua huye.","Gato escaldado del agua huye."]
[185,"Del mal, el menos.","Del mal el menos."]
[186,"Al que teniendo cama, duerme en el suelo, no hay que tenerle duelo.","Al que teniendo cama duerme en el suelo no hay que tenerle duelo."]
[187,"Al pan, pan, y al vino, vino.","Al pan pan y al vino vino."]
[188,"El arroz, el pez y el pepino nacen en agua y mueren en vino.","El arroz el pez y el pepino nacen en agua y mueren en vino."]
[189,"Si te vi, no me acuerdo.","Si te vi no me acuerdo."]
[190,"No es pobre el que tiene, sino el que mucho quiere.","No es pobre el que tiene sino el que mucho quiere."]
[191,"A buen entendedor, pocas palabras bastan.","A buen entendedor pocas palabras bastan."]
[192,"A falta de pan, buenas son tortas.","A falta de pan buenas son tortas."]
[193,"Zapatero, a tus zapatos.","Zapatero a tus zapatos."]
[194,"El parque de la villa tenía siete árboles, siete farolas y siete bancos.","El parque de la villa tenia siete arboles siete farolas y siete bancos."]
[{"$f":"A195+1","v":195},"En el parque de la villa, entre polvo, jugaban los niños y recordaban los viejos.","En el parque de la villa entre polvo jugaban los niños y recordaban los viejos."]
[196,"Cuando sonaban las diez en el reloj del Ayuntamiento, los niños, ya sin risas, dejaban el parque.","Cuando sonaban las diez en el reloj del Ayuntamiento los niños ya sin risas dejaban el parque."]
[197,"Cuando sonaban las diez y media en el reloj de las Hermanas de la Caridad, los viejos, con todos sus recuerdos titubeantes, se marchaban del parque.","Cuando sonaban las diez y media en el reloj de las hermanas de la caridad los viejos con todos sus recuerdos titubeantes se marchaban del parque."]
[198,"Después de las doce de la noche solía haber en el parque algún borracho cantarín, pero el Bando lo prohibía.","Después de las doce de la noche solía haber en el parque algún borracho cantarín pero el Bando lo prohibía."]
[199,"A grandes males, grandes remedios.","A grandes males grandes remedios."]
[200,"A donde fueres, haz lo que vieres.","A donde fueres haz lo que vieres."]
[201,"El caminante quería sentarse, recuperar sus fuerzas, descansar; sin embargo, debía continuar.","El caminante quería sentarse recuperar sus fuerzas descansar sin embargo debía continuar."]
[202,"La muchacha, después de oír la noticia, esbozó una leve sonrisa; se lleno inmediatamente de alegría, de una inmensa satisfacción; por fin, había llegado el momento tan esperado.","La muchacha después de oír la noticia esbozó una leve sonrisa se lleno inmediatamente de alegría de una inmensa satisfacción por fin había llegado el momento tan esperado."]
[203,"Uno es Enrique, el carpintero, el más hábil de todos; otro; Manuel, cordial y simpático.","Uno es Enrique el carpintero el mas habil de todos otro Manuel cordial y simpático."]
[204,"En el trabajo le decían que debía perfeccionarse más; que no podía continuar de esta manera; que le convenía ponerse al día.","En el trabajo le decían que debía perfeccionarse más que no podía continuar de esta manera que le convenía ponerse al día."]
[205,"El comerciante colocaba los precios en el escaparate: camisas, 2.400 pesetas; corbatas, 500 pesetas; calcetines, 100; pañuelos, 600 pesetas la docena.","El comerciante colocaba los precios en el escaparate camisas 2.400 pesetas corbatas 500 pesetas calcetines 100 pañuelos 600 pesetas la docena."]
[206,"El padre, viendo la actitud de su hijo, se enfadó mucho; incluso la madre se manifestaba esquiva y huidiza.","El padre viendo la actitud de su hijo se enfadó mucho incluso la madre se manifestaba esquiva y huidiza."]
[207,"Estoy dispuesto, señor profesor, si usted quiere ayudarme; pero no sé si conseguiré superarme.","Estoy dispuesto señor profesor si usted quiere ayudarme pero no sé si conseguiré superarme."]
[208,"Subimos a las pistas de esquí con el telesilla, esquiamos durante tres horas y nos divertimos mucho; pero el mal tiempo nos impidió continuar.","Subimos a las pistas de esquí con el telesilla esquiamos durante tres horas y nos divertimos mucho pero el mal tiempo nos impidió continuar."]
[209,"Ventura te dé Dios, hijo; que el saber, poco te basta.","Ventura te dé Dios hijo que el saber poco te basta."]
[210,"Gracia pedida, velas encendidas; gracia lograda, ni velas ni nada.","Gracia pedida velas encendidas gracia lograda ni velas ni nada."]
[211,"Buscando un amigo mi vida pasé; muriendo estoy de viejo, y no lo encontré.","Buscando un amigo mi vida pasé muriendo estoy de viejo y no lo encontré."]
[212,"De la castaña al huevo; del huevo a la gallina; de la gallina al buey; del buey a la horca.","De la castaña al huevo del huevo a la gallina de la gallina al buey del buey a la horca."]
[213,"Cuando nos aman, señoras nos llaman; cuando nos tienen, ya no nos quieren.","Cuando nos aman señoras nos llaman cuando nos tienen ya no nos quieren."]
[214,"El hombre es fuego; la mujer, estopa; llega el diablo y sopla.","El hombre es fuego la mujer estopa llega el diablo y sopla."]
[215,"Los días de la semana son: lunes, martes, miércoles, jueves, viernes, sábado y domingo.","Los dias de la semana son lunes martes miercoles jueves viernes sabado y domingo."]
[216,"Los principales ríos españoles son: el Miño, el Duero, el Tajo, el Guadiana, el Guadalquivir, el Ebro, el Júcar y el Segura.","Los principales ríos españoles son el Miño el Duero el Tajo el Guadiana el Guadalquivir el Ebro el Júcar y el Segura.","Se escriben dos puntos antes de una enumeración."]
[217,"Tienes que traer las siguientes cosas para limpiar: un cubo, una escoba, una pastilla de jabón y una botella de lejía.","Tienes que traer las siguientes cosas para limpiar un cubo una escoba una pastilla de jabon y una botella de lejia.","Se escriben dos puntos antes de una enumeración."]
[218,"Julio César dijo aquella famosa frase: \"Llegué, ví, vencí\".","Julio César dijo aquella famosa frase \"Llegué ví vencí\".","Se escriben dos puntos antes de una enumeración."]
[219,"Quevedo escribió el famoso soneto que empieza: \"Érase un hombre a una nariz pegado\".","Quevedo escribio el famoso soneto que empieza \"Erase un hombre a una nariz pegado\".","Se escriben dos puntos cuando se introducen palabras textuales"]
[220,"La habitación donde tantas veces durmió, los vetustos muebles, el traje de marinero que estrenó el día de su primera comunión, los juguetes rotos y polvorientos: todo evoca su infancia.","La habitacion donde tantas veces durmio los vetustos muebles el traje de marinero que estreno el dia de su primera comunion los juguetes rotos y polvorientos todo evoca su infancia.","Se escriben dos puntos cuando se introducen palabras textuales"]
[221,"Después de descansar, si quieres… ya sabes.","Después de descansar si quieres… ya sabes."]
[222,"La camisa está rota. Podrías… aunque puedo ponerme otra.","La camisa está rota podrías… aunque puedo ponerme otra.","Se escriben puntos suspensivos … cuando se quiere dejar la oración incompleta y el sentido suspenso."]
[223,"Si desea algo…","Si desea algo…","Se escriben puntos suspensivos … cuando se quiere dejar la oración incompleta y el sentido suspenso."]
[224,"\"Hacía daño respirar. Las sirenas de las fábricas se clavaban en el costado blanco de la mañana. Pasaron hacia los vertederos los carros de la basura. Pedro Sánchez se sopló los dedos\".","\"Hacia daño respirar las sirenas de las fabricas se clavaban en el costado blanco de la mañana pasaron hacia los vertederos los carros de la basura pedro sanchez se soplo los dedos\".","Se escriben puntos suspensivos … cuando se quiere dejar la oración incompleta y el sentido suspenso."]
[225,"No hay peor enemigo que la droga: por ella los jóvenes pierden los mejores años de su vida; por ella se aniquila la libertad del hombre; por ella se cometen toda clase de atropellos.","No hay peor enemigo que la droga por ella los jóvenes pierden los mejores años de su vida por ella se aniquila la libertad del hombre por ella se cometen toda clase de atropellos."]
[226,"El refrán popular dice: \"No hay peor ciego que el que no quiere ver\".","El refrán popular dice \"No hay peor ciego que el que no quiere ver\"."]
[227,"Querida amiga: Te escribo desde Londres en donde…","Querida amiga te escribo desde Londres en donde…"]
[228,"Los cinco continentes son: Europa, Asia, África, América y Oceanía.","Los cinco continentes son Europa Asia África América y Oceanía."]
[229,"Había algo que Pedro no había conseguido: vencer a Jeremias.","Habia algo que Pedro no habia conseguido vencer a Jeremias."]
[230,"Los dos muchachos contestaron: -Pronto subiremos.","Los dos muchachos contestaron -Pronto subiremos."]
[231,"¿Qué había hecho el equipo para ganar? Tres cosas: dominar el rebote, un marcaje por zonas y presionar al rival.","¿Que habia hecho el equipo para ganar? Tres cosas dominar el rebote un marcaje por zonas y presionar al rival."]
[232,"Sinceridad, generosidad, inquietud, rebeldía, entrega: he aquí las virtudes del adolescente.","Sinceridad generosidad inquietud rebeldia entrega he aqui las virtudes del adolescente."]
[233,"El viejo replicó: \"La experiencia enseña mucho\".","El viejo replicó \"La experiencia enseña mucho\"."]
[234,"El alcalde de mi pueblo me lo enseñó: quítate tú para que me ponga yo.","El alcalde de mi pueblo me lo enseño quitate tu para que me ponga yo."]
[235,"Dijo la sartén al cazo: quita allá, que me tiznas.","Dijo la sartén al cazo quita allá que me tiznas."]
[236,"Para ser dichoso se ha de saber hacer dos cosas: cerrar los ojos y abrir la mano.","Para ser dichoso se ha de saber hacer dos cosas cerrar los ojos y abrir la mano."]
[237,"Juan Palomo: yo me lo guiso y yo me lo como.","Juan Palomo yo me lo guiso y yo me lo como."]
[238,"Dime con quien andas y...","Dime con quien andas y..."]
[239,"Si él quisiera, pero…","Si el quisiera pero…"]
[240,"Como se entere tu padre…","Como se entere tu padre…"]
[241,"Se acercó silenciosamente, abrió la puerta del desván y… unos ratones salieron corriendo.","Se acerco silenciosamente, abrio la puerta del desvan y… unos ratones salieron corriendo."]
[242,"Entonces sucedió que... en fin, es mejor no recordarlo.","Entonces sucedio que... en fin es mejor no recordarlo."]
[243,"En nuestro viaje a Italia visitamos: Pisa, Florencia, Roma...","En nuestro viaje a Italia visitamos Pisa Florencia Roma..."]
[244,"La mujer dijo: \"Déjame en paz de una vez\".","La mujer dijo \"Déjame en paz de una vez\"."]
[245,"Interés, horas de estudio, deseo de superarse: he aquí lo que falta en esta clase.","Interés horas de estudio deseo de superarse he aquí lo que falta en esta clase."]
[246,"Al congreso asistieron médicos de muchos países: franceses, alemanes, ingleses, americanos...","Al congreso asistieron medicos de muchos paises franceses alemanes ingleses americanos..."]
[247,"En los siguientes ejercicios habrá que colocar: acentos, comas, puntos y admiración.","En los siguientes ejercicios habra que colocar acentos comas puntos y admiracion."]
[248,"Muy señor mio: Me dirijo a usted para comunicarle, etc.","Muy señor mio Me dirijo a usted para comunicarle etc."]
[249,"También sabes que quien a hierro mata…","También sabes que quien a hierro mata…"]
[250,"Ante tal situación sólo nos queda una alternativa: declararnos en huelga indefinida.","Ante tal situación sólo nos queda una alternativa declararnos en huelga indefinida."]
[251,"Los hechos ya denunciados hace tiempo por nuestra asociación, son los siguientes: negligencia administrativa, abuso de poder y estafa a los contribuyentes.","Los hechos ya denunciados hace tiempo por nuestra asociación son los siguientes negligencia administrativa abuso de poder y estafa a los contribuyentes."]
[252,"Se distribuyeron cientos de programas entre el alumnado, se gastaron miles de pesetas en la Semana Cultural, y asistieron a los actos… cincuenta alumnos.","Se distribuyeron cientos de programas entre el alumnado se gastaron miles de pesetas en la Semana Cultural y asistieron a los actos… cincuenta alumnos."]
[253,"Una alimentación equilibrada requiere: proteinas, grasas y minerales.","Una alimentacion equilibrada requiere proteinas grasas y minerales."]
[254,"Los jovenes esperan de la sociedad: una formación adecuada, un mejor conocimiento de su problemática y mejores oportunidades para trabajar.","Los jovenes esperan de la sociedad una formación adecuada un mejor conocimiento de su problemática y mejores oportunidades para trabajar."]
[255,"Isabel contestó a su padre: -Las demás chicas me han contado… -¡Cállate! -replicó el padre.","Isabel contestó a su padre -Las demás chicas me han contado… -¡Cállate! -replicó el padre."]
[256,"El moribundo aún pudo pronunciar estas últimas palabras: \"Me muero... adiós, hijos...\"","El moribundo aun pudo pronunciar estas ultimas palabras: \"Me muero... adios hijos...\""]
[257,"Don Juan Pedrera de Alba doctor en Medicina y Cirugía, Certifica: Que después de la exploración efectuada, etc.","Don Juan Pedrera de Alba doctor en Medicina y Cirugia Certifica que despues de la exploracion efectuada etc."]
[258,"La madre llamaba a su hijo a gritos: -¡xuanen...!","La madre llamaba a su hijo a gritos -¡xuanen...!"]
[{"$f":"A259+1","v":259},"comieron sopa, pescado, huevos y postre","comieron sopa pescado huevos y postre"]
[260,"aún no he comido","aun no he comido"]
[261,"aun los tontos lo comprenden","aun los tontos lo comprenden"]
[262,"sólo aguardo el aviso","solo aguardo el aviso"]
[263,"cantó un solo","canto un solo"]
[264,"llegó solo","llego solo"]
[265,"un sólo aparato regresó","un solo aparato regreso"]
[266,"quiero más carbón","quiero mas carbon"]
[267,"el más y el menos","el mas y el menos"]
[268,"dame esto mas no aquello","dame esto más no aquello"]
[269,"ha venido él pero no ella","a venido el pero no ella"]
[270,"él nos lo dijo","el nos lo dijo"]
[271,"el niño cogió el libro y lo entregó a él","el niño cogio el libro y lo entrego a el"]
[272,"él lo recogió y lo guardó para entregarlo a su padre","el lo recogio y lo guardo para entregarlo a su padre"]
[273,"tú no sabes la alegría que le dio al recibir este obsequio tan hermoso de mi hijo Mario","tu no sabes la alegria que le dio al recibir este obsequio tan hermoso de mi hijo Mario"]
[274,"mi buena hermana compró para mí la entrada del cine que debía ser para ella","mi buena hermana compro para mi la entrada del cine que debia ser para ella"]
[275,"éstos se llevaron todas las plumas","estos se llevaron todas las plumas"]
[276,"sólo leo cuando voy a dormir","solo leo cuando voy a dormir"]
[277,"oí un solo que sólo puede tocarlo ese magnífico violinista","oi un solo que solo puede tocarlo ese magnifico violinista"]
[278,"fui a pasear con él","fui a pasear con el"]
[279,"le parecía ridículo el hacerlo","le parecia ridiculo el acerlo"]
[280,"no dé más caramelos a los niños","no de mas caramelos a los niños"]
[281,"pues sé que les perjudican","pues se que les perjudican"]
[282,"coméis y cantáis","comeis y cantais"]
[283,"si vas a Ávila podrás admirar sus hermosos monumentos","si vas a Avila podras admirar sus ermosos monumentos"]
[284,"tú deberías preparar el té","tu deberias preparar el te"]
[285,"aún no he visto aquello","aun no he visto aquello"]
[286,"aún podremos solucionarlo","aun podremos solucionarlo"]
[287,"deseo aún más libros para leer","deseo aun mas libros para leer"]
[288,"Pedro desea aún comprar más libros","Pedro desea aun comprar mas libros"]
[289,"sólo he salido para eso","solo he salido para eso"]
[290,"todo lo demás aún no me interesa","todo lo demas aun no me interesa"]
[291,"el porqué de lo sucedido no puedo saberlo hoy","el porque de lo sucedido no puedo saberlo hoy"]
[292,"devolví a don Hilario los seis duros que me prestó","devolvi a don Hilario los seis duros que me presto"]
[293,"lográndose conjuntos muy armónicos","lograndose conjuntos muy armonicos"]
[294,"lo mio, lo tuyo y lo de él, todo lo quiere para sí","lo mio lo tuyo y lo de el todo lo quiere para si"]
[295,"¿ dónde está el vestido ?","¿ donde esta el vestido ?"]
[296,"debéis estudiar más si queréis aprobar en junio próximo","debeis estudiar mas si quereis aprobar en junio proximo"]
[297,"no sé quien ha podido decir semejante cosa","no se quien a podido decir semejante cosa"]
[298,"¿ no has comprendido aún que es necio servir al que paga mal ?","¿ no as comprendido aun que es necio servir al que paga mal ?"]
[299,"habitualmente resido en Álava","abitualmente resido en Alava"]
[300,"esto no es para mí, pero aquello sí lo es","esto no es para mi, pero aquello si lo es"]
[301,"sé bueno, y tendrás tu recompensa","se bueno y tendras tu reconpensa"]
[302,"yo no sé lo que quiere decir","yo no se lo que quiere decir"]
[303,"sé estudiosa","se estudiosa"]
[304,"ella se puso a estudiar y se entusiasmó","ella se puso a estudiar y se entusiasmo"]
[305,"no se escribieron más","no se escribieron mas"]
[306,"lleva un saco a cuestas","lleva un saco acuestas"]
[307,"te acuestas tarde","te a cuestas tarde"]
[308,"se hirió a sí mismo","se irio asimismo"]
[309,"ellos llegarán, asimismo, a las doce","ellos llegaran, a si mismo, a las doce"]
[310,"así mismo está bien","asi mismo esta bien"]
[311,"llegué a un pueblo","llegue a un pueblo"]
[312,"No ha llegado aún","No a llegado aun"]
[313,"vinieron todos, aun los ancianos","vinieron todos aún los ancianos"]
[314,"es del verbo haber","es del verbo aber"]
[315,"habiendo tanto no faltará","abiendo tanto no faltara"]
[316,"no ha habido lugar a ello","no a abido lugar a ello"]
[317,"con haber habido tanto no ha sido suficiente","con aber abido tanto no a sido suficiente"]
[318,"no ha habido lugar a ello","no a abido lugar a ello"]
[319,"habiendo de ver luego el partido, no salgamos ahora","abiendo de ver luego el partido, no salgamos aora"]
[320,"voy a ver a mi hermana","voy a ver a mi ermana"]
[321,"he de ver si está el verbo haber","e de ver si esta el verbo aber"]
[322,"a ver si vienes","a ver si vienes"]
[{"$f":"A323+1","v":323},"ve a ver si está en casa","ve a ver si esta en casa"]
[324,"yo he comido tanto que me ha hecho daño","yo e comido tanto que me a echo daño"]
[325,"has de saber, amigo Vicente, que hemos andado toda la jornada","as de saber, amigo Vicente, que emos andado toda la jornada"]
[326,"vosotros habréis de ir como lo han hecho ellos","vosotros abreis de ir como lo an echo ellos"]
[327,"ha habido una discusión y no has de preguntar nada","a abido una discusion y no as de preguntar nada"]
[328,"han de haber cantado muy fuerte","an de aber cantado muy fuerte"]
[329,"no había nada cuando tú habías regresado","no abia nada cuando tu abias regresado"]
[330,"¿ te gustaría tomar el té en aquel parador tan magnífico que hay en las cercanías de Tuy ?","¿ te gustaria tomar el te en aquel parador tan magnifico que ay en las cercanias de Tuy ?"]
[331,"aún no ha traído la máquina que dijeron traerían ayer","aun no a traido la maquina que dijeron traerian ayer"]
[332,"mas el director ha dicho que él se encargará personalmente del asunto","mas el director a dicho que el se encargara personalmente del asunto"]
[333,"y confía que hoy quedará lista","y confia que hoy quedara lista"]
[334,"es el verbo haber","es el verbo aber"]
[335,"habiendo tanto no faltará","abiendo tanto no faltara"]
[336,"con haber habido tanto no ha sido suficiente","con aber abido tanto no a sido suficiente"]
[337,"búscalo ahí","buscalo ai"]
[338,"por ahí lo encontrarás","por aí lo encontraras"]
[339,"hay mucha gente","ay mucha gente"]
[340,"ahí hay un hombre que dice ay","ay ahí un ombre que dice ai"]
[341,"no hay nada que hacer aquí","no ay nada que acer aqui"]
[342,"habitantes","abitantes"]
[343,"ha estallado una huelga imponente","a estallado una uelga inponente"]
[344,"el huerfano ha pasado la noche en el huerto","el uerfano a pasado la noche en el uerto"]
[345,"con sus herramientas, hizo un herraje muy sólido","con sus erramientas izo un erraje muy solido"]
[346,"el campo estaba muy hermoso","el campo estaba muy ermoso"]
[347,"la herencia que heredó el heredero menor tiene catorce hectáreas de huerta","la erencia que eredo el eredero menor tiene catorce ectareas de uerta"]
[348,"con la navaja se hizo una herida muy honda","con la navaja se izo un erida muy onda"]
[349,"estas plantas herbaceas hermosearon nuestro jardín","estas plantas erbaceas ermosearon nuestro jardin"]
[350,"él encontró un erizo entre las hierbas","el encontro un erizo entre las ierbas"]
[351,"Hipólito decía que su hermano era más hábil","Ipolito decia que su ermano era mas abil"]
[352,"al cirujano especialista en operar hernias se le llama hernista","al cirujano especialista en operar ernias se le llama ernista"]
[353,"hazlo breve y sin cometer ningún error","azlo breve y sin cometer ningun error"]
[354,"habichuela","abichuela"]
[355,"la huerta se halla hermosa","la uerta se alla ermosa"]
[356,"seguimos las huellas y llegamos hasta la entrada de la cueva","seguimos las uellas y llegamos asta la entrada de la cueva"]
[357,"había montones de huesos","abia montones de uesos"]
[358,"lleva un saco a cuestas","lleva un saco acuestas"]
[359,"te acuestas tarde","te a cuestas tarde"]
[360,"se hirió a sí mismo","se irio a si mismo"]
[361,"ellos llegarán, asimismo, a las doce","ellos llegaran asi mismo a las doce"]
[362,"así mismo está bien","asi mismo esta bien"]
[363,"llegué a un pueblo","llegue a un pueblo"]
[364,"no ha llegado aún","no a llegado aun"]
[365,"vinieron todos, aun los ancianos","vinieron todos, aun los ancianos"]
[366,"el pelo de Luis es más corto aún que el de Juan","el pelo de Luis es mas corto aun que el de Juan"]
[367,"aunque no ha llegado, comenzaremos","aunque no a llegado comenzaremos"]
[368,"ese adjetivo está de más","ese adjetivo esta de mas"]
[369,"le tengo dicho que no le dé más caramelos","le tengo dicho que no le de mas caramelos"]
[370,"los demás no cantaban","los demas no cantaban"]
[371,"entre tanto papel, no me aclaro","entre tanto papel no me aclaro"]
[372,"entretanto lo desembalan, desayunaremos","entre tanto lo desembalan desallunaremos"]
[373,"desembalan","desenbalan"]
[374,"el código por que se rige la comunidad es reciente","el codigo porque se rije la comunidad es reciente"]
[375,"lloraba porque estaba triste","lloraba por qué estava triste"]
[376,"él sabe por qué lo ha hecho","el sabe por que lo a echo"]
[377,"el jersey está hecho de lana","el jersey esta echo de lana"]
[378,"no conozco el porqué de este informe","no conosco el por que de este informe"]
[379,"tanto quehacer me abruma","tanto que hacer me abruma"]
[380,"el negocio salió tan bien que repetimos","el negocio salio tanbien que repetimos"]
[381,"el telegrama también ha salido hoy","el telegrama tanbien a salido hoy"]
[382,"llueve tan poco que todo está seco","llueve tanpoco que todo esta seco"]
[383,"Luisa tampoco ha llamado","Luisa tan poco a llamado"]
[384,"tampoco","tanpoco"]
[385,"la aldea adonde vamos no tiene luz","la aldea a donde vamos no tiene luz"]
[386,"¿ adónde iremos el lunes ?","¿ adonde iremos el lunes?"]
[{"$f":"A387+1","v":387},"tenía una herida por asta de toro","tenia una erida por asta de toro"]
[388,"llegaron hasta la cumbre","llegaron asta la cumbre"]
[389,"llegaron todos los paquetes, aun los más grandes","llegaron todos los paquetes, aun los mas grandes"]
[390,"aún estamos en Madrid","aun estamos en Madrid"]
[391,"pondremos el equipaje en la baca","pondremos el equipaje en la vaca"]
[392,"ese mueble no cabe en la habitación","ese mueble no cabe en la abitacion"]
[393,"el mes de enero","el mes de enero"]
[394,"dile a Ricardo que dé la calefacción","dile a Ricardo que de la calefaccion"]
[395,"el Viejo y el Mar","el Viejo y el Mar"]
[396,"no se lo entregues a él","no se lo entreges a el"]
[397,"él fue el que lo hizo","el fue el que lo hizo"]
[398,"este armario, necesita pintarse","este armario necesita pintarse"]
[399,"esta habitación es luminosa","esta abitacion es luminosa"]
[400,"La máquina número tres es nueva; ésta habría que repararla","la maquina numero tres es nueva; esta habria que repararla"]
[401,"ese panel está torcido","ese panel esta torcido"]
[402,"la cartera marrón es de Jacinto; esa de Miguel","la cartera marron es de Jacinto esa de Miguel"]
[403,"me mandaron un sobre, mas no lo recibí","me mandaron un sobre, mas no lo recibi"]
[404,"no envíes más bultos","no envies mas bultos"]
[405,"mi hermano es menor que yo","mi ermano es menor que yo"]
[406,"debes contármelo a mí","debes contarmelo a mi"]
[407,"se dice que no llegaremos a tiempo","se dice que no llegaremos a tiempo"]
[408,"lo que me preguntas no lo sé","lo que me preguntas no lo se"]
[409,"sé una buena persona","se una buena persona"]
[410,"desconozco si lo han mandado","desconozco si lo han mandado"]
[411,"si lo deseas, lo conseguirás","si lo deseas lo consegiras"]
[412,"dijo que sí lo haría","dijo que si lo haria"]
[413,"hablaba para sí mismo","ablaba para si mismo"]
[414,"había un solo violín en la orquesta","habia un solo violin en la orquesta"]
[415,"el banco estaba solo, nadie lo ocupaba","el banco estava solo, nadie lo ocupaba"]
[416,"te digo sólo una cosa","te digo solo una cosa"]
[417,"tu pueblo es muy grande","tu pueblo es muy grande"]
[418,"tú lo has querido así","tu lo as querido asi"]
[419,"el tubo de escape se rompió","el tubo de escape se rompio"]
[420,"la empresa tuvo muchos problemas","la empresa tubo muchos problemas"]
[421,"árbol","arbol"]
[422,"característico","caracteristico"]
[423,"cráneo","craneo"]
[424,"estábamos","estabamos"]
[425,"contábamos","contabamos"]
[426,"el general animó a sus tropas dándoles ánimo","el general animo a sus tropas dandoles animo"]
[427,"recomendarás al intérprete que interprete bien la conferencia","recomendaras al interprete que interprete bien la conferencia"]
[428,"da lástima ver como se lastíma el trabajador en la fundición","da lastima ver como se lastima el trabajador en la fundiccion"]
[429,"el mecánico ha reparado la dinamo","el mecanico a reparado la dinamo"]
[430,"en estos árboles","en estos arboles"]
[431,"aún no he comido","aun no he comido"]
[432,"quiero más carbón","quiero mas carbon"]
[433,"dame esto mas no aquello","dame esto más no aquello"]
[434,"ha venido él pero no ella","a venido el pero no ella"]
[435,"él nos lo dijo","el nos lo dijo"]
[436,"toma el juguete y el lápiz","toma el jugete y el lapiz"]
[437,"tú no puedes resolver el problema","tu no puedes resolver el poblema"]
[438,"tu casa tiene seis pisos","tu caza tiene seis pisos"]
[439,"esto es para mí y no para ti","esto es para mi y no para ti"]
[440,"ven luego a mi casa","ven luego a mí casa"]
[441,"esta nota se llama mi","esta nota se llama mí"]
[442,"me lo dijo éste","me lo dijo este"]
[443,"aquel que vino es mi hermano","aquel que vino es mi ermano"]
[444,"aquella última es mi prima","aquella ultima es mi prima"]
[445,"aquellos que sepan la lección tendrán un premio","aquellos que sepan la leccion tendran un premio"]
[446,"este de hoy no me gusta","este de hoy no me gusta"]
[447,"substituirse","subtituirse"]
[448,"este libro, ese lápiz y aquellos relojes son mios","este libro, ese lapiz y aquellos relojes son mios"]
[449,"dame estos papeles","dame estos papeles"]
[450,"toma aquellas carpetas","toma aquellas carpetas"]
[{"$f":"A451+1","v":451},"esto es mio","esto es mio"]
[452,"acentúa","acentua"]
[453,"yo no sé lo que quieres decir","yo no se lo que quieres decir"]
[454,"sé estudiosa","se estudiosa"]
[455,"ella se puso ha estudiar y se entusiasmó","ella se puso a estudiar y se entusiasmo"]
[456,"no se inscribieron más","no se inscribieron mas"]
[457,"no sé como han podido realizar esto","no se como an podido realizar esto"]
[458,"sé bueno y obtendrás lo que deseas","se bueno y obtendras lo que deseas"]
[459,"él dijo que sí lo quería","el dijo que si lo queria"]
[460,"lo guardó para sí","lo guardo para si"]
[461,"le costó dar el sí prometido","le costo dar el si prometido"]
[462,"si no es así no lo quiero","si no es asi no lo quiero"]
[463,"no pudo llegar al si que da tu violín","no pudo llegar al si que da tu violin"]
[464,"dile que te dé la ortografía","dile que te de la ortografia"]
[465,"libro de aritmética","libro de aritmetica"]
[466,"las virtudes de la mujer","las virtudes de la mujer"]
[467,"¿ has tomado el té ?","¿ has tomado el te ?"]
[468,"tengo una caja de té chino","tengo una caja de te chino"]
[469,"no te vieron al llegar","no te vieron al llegar"]
[470,"pero te reconocieron luego","pero te reconocieron luego"]
[471,"¿ cúal quieres ?","¿ cual quieres ?"]
[472,"¡ quién lo hubiera dicho !","¡ quien lo hubiera dicho !"]
[473,"no sé como pudo hacerlo","no se como pudo acerlo"]
[474,"dime el cómo y el cuándo","dime el como y el cuando"]
[475,"voy a casa porque así lo desea mi padre","voy a casa por que asi lo desea mi padre"]
[476,"quiero regresar pronto porque María me espera","quiero regresar pronto porque Maria me espera"]
[477,"dime el porqué de tu silencio","dime el porque de tu silencio"]
[478,"ignoro el porqué de tal conducta","ignoro el porque de tal conducta"]
[479,"el motivo por que no vino mi hermana no lo puedo decir","el motivo por que no vino mi ermana no lo puedo decir"]
[480,"lo hice por que no ganases la apuesta","lo hice porque no ganases la apuesta"]
[481,"¿ por qué no has venido ?","¿ por que no has venido ?"]
[482,"¡ por qué ha de ocurrir esto !","¡ por que a de ocurrir esto !"]
[483,"quiero saber por qué lo hace","quiero saber por que lo hace"]
[484,"ya te he dicho que no está, conque tú verás lo que haces","ya te e dicho que no esta, conque tu veras lo que aces"]
[485,"conque ¿ está usted de vuelta ?","conque ¿ esta usted de vuelta ?"]
[486,"conque ¿ nos vamos mañana de vacaciones ?","conque ¿ nos vamos mañana de vacaciones ?"]
[487,"la pluma con que has escrito esto","la pluma con que as escrito esto"]
[488,"ya conozco el interés con que te defendieron","ya conozco el interes con que te defendieron"]
[489,"¿ con qué puedo levantarlo ?","¿ con que puedo levantarlo ?"]
[490,"¡ con qué pena ha marchado a casa !","¡ con que pena a marchado a casa !"]
[491,"dime con qué has hecho esto","dime con que as echo esto"]
[492,"tengo 4 ó 5 tinteros","tengo 4 o 5 tinteros"]
[493,"vendrán 6 ó más personas","vendran 6 o mas personas"]
[494]
[495]
[496]
[497]
[498]
[499]
[500]
[501]
[502]
[503]
[504]
[505]
[506]
[507]
[508]
[509]
[510]
[511]
[512]
[513]
[514]
[{"$f":"A515+1","v":515}]
[516]
[517]
[518]
[519]
[520]
[521]
[522]
[523]
[524]
[525]
[526]
[527]
[528]
[529]
[530]
[531]
[532]
[533]
[534]
[535]
[536]
[537]
[538]
[539]
[540]
[541]
[542]
[543]
[544]
[545]
[546]
[547]
[548]
[549]
[550]
[551]
[552]
[553]
[554]
[555]
[556]
[557]
[558]
[559]
[560]
[561]
[562]
[563]
[564]
[565]
[566]
[567]
[568]
[569]
[570]
[571]
[572]
[573]
[574]
[575]
[576]
[577]
[578]
[{"$f":"A579+1","v":579}]
[580]
[581]
[582]
[583]
[584]
[585]
[586]
[587]
[588]
[589]
[590]
[591]
[592]
[593]
[594]
[595]
[596]
[597]
[598]
[599]
[600]
[601]
[602]
[603]
[604]
[605]
[606]
[607]
[608]
[609]
[610]
[611]
[612]
[613]
[614]
[615]
[616]
[617]
[618]
[619]
[620]
[621]
[622]
[623]
[624]
[625]
[626]
[627]
[628]
[629]
[630]
[631]
[632]
[633]
[634]
[635]
[636]
[637]
[638]
[639]
[640]
[641]
[642]
[{"$f":"A643+1","v":643}]
[644]
[645]
[646]
[647]
[648]
[649]
[650]
[651]
[652]
[653]
[654]
[655]
[656]
[657]
[658]
[659]
[660]
[661]
[662]
[663]
[664]
[665]
[666]
[667]
[668]
[669]
[670]
[671]
[672]
[673]
[674]
[675]
[676]
[677]
[678]
[679]
[680]
[681]
[682]
[683]
[684]
[685]
[686]
[687]
[688]
[689]
[690]
[691]
[692]
[693]
[694]
[695]
[696]
[697]
[698]
[699]
[700]
[701]
[702]
[703]
[704]
[705]
[706]
[{"$f":"A707+1","v":707}]
[708]
[709]
[710]
[711]
[712]
[713]
[714]
[715]
[716]
[717]
[718]
[719]
[720]
[721]
[722]
[723]
[724]
[725]
[726]
[727]
[728]
[729]
[730]
[731]
[732]
[733]
[734]
[735]
[736]
[737]
[738]
[739]
[740]
[741]
[742]
[743]
[744]
[745]
[746]
[747]
[748]
[749]
[750]
[751]
[752]
[753]
[754]
[755]
[756]
[757]
[758]
[759]
[760]
[761]
[762]
[763]
[764]
[765]
[766]
[767]
[768]
[769]
[770]
[{"$f":"A771+1","v":771}]
[772]
[773]
[774]
[775]
[776]
[777]
[778]
[779]
[780]
[781]
[782]
[783]
[784]
[785]
[786]
[787]
[788]
[789]
[790]
[791]
[792]
[793]
[794]
[795]
[796]
[797]
[798]
[799]
[800]
[801]
[802]
[803]
[804]
[805]
[806]
[807]
[808]
[809]
[810]
[811]
[812]
[813]
[814]
[815]
[816]
[817]
[818]
[819]
[820]
[821]
[822]
[823]
[824]
[825]
[826]
[827]
[828]
[829]
[830]
[831]
[832]
[833]
[834]
[{"$f":"A835+1","v":835}]
[836]
[837]
[838]
[839]
[840]
[841]
[842]
[843]
[844]
[845]
[846]
[847]
[848]
[849]
[850]
[851]
[852]
[853]
[854]
[855]
[856]
[857]
[858]
[859]
[860]
[861]
[862]
[863]
[864]
[865]
[866]
[867]
[868]
[869]
[870]
[871]
[872]
[873]
[874]
[875]
[876]
[877]
[878]
[879]
[880]
[881]
[882]
[883]
[884]
[885]
[886]
[887]
[888]
[889]
[890]
[891]
[892]
[893]
[894]
[895]
[896]
[897]
[898]
[{"$f":"A899+1","v":899}]
[900]
[901]
[902]
[903]
[904]
[905]
[906]
[907]
[908]
[909]
[910]
[911]
[912]
[913]
[914]
[915]
[916]
[917]
[918]
[919]
[920]
[921]
[922]
[923]
[924]
[925]
[926]
[927]
[928]
[929]
[930]
[931]
[932]
[933]
[934]
[935]
[936]
[937]
[938]
[939]
[940]
[941]
[942]
[943]
[944]
[945]
[946]
[947]
[948]
[949]
[950]
[951]
[952]
[953]
[954]
[955]
[956]
[957]
[958]
[959]
[960]
[961]
[962]
[{"$f":"A963+1","v":963}]
[964]
[965]
[966]
[967]
[968]
[969]
[970]
[971]
[972]
[973]
[974]
[975]
[976]
[977]
[978]
[979]
[980]
[981]
[982]
[983]
[984]
[985]
[986]
[987]
[988]
[989]
[990]
[991]
[992]
[993]
[994]
[995]
[996]
[997]
[998]
[999]
[1000]
[1001]
[1002]
[1003]
[1004]
[1005]
[1006]
[1007]
[1008]
[1009]
[1010]
[1011]
[1012]
[1013]
[1014]
[1015]
[1016]
[1017]
[1018]
[1019]
[1020]
[1021]
[1022]
[1023]
[1024]
[1025]
[1026]
[{"$f":"A1027+1","v":1027}]
[1028]
[1029]
[1030]
[1031]
[1032]
[1033]
[1034]
[1035]
[1036]
[1037]
[1038]
[1039]
[1040]
[1041]
[1042]
[1043]
[1044]
[1045]
[1046]
[1047]
[1048]
[1049]
[1050]
[1051]
[1052]
[1053]
[1054]
[1055]
[1056]
[1057]
[1058]
[1059]
[1060]
[1061]
[1062]
[1063]
[1064]
[1065]
[1066]
[1067]
[1068]
[1069]
[1070]
[1071]
[1072]
[1073]
[1074]
[1075]
[1076]
[1077]
[1078]
[1079]
[1080]
[1081]
[1082]
[1083]
[1084]
[1085]
[1086]
[1087]
[1088]
[1089]
[1090]
[{"$f":"A1091+1","v":1091}]
[1092]
[1093]
[1094]
[1095]
[1096]
[1097]
[1098]
[1099]
[1100]
[1101]
[1102]
[1103]
[1104]
[1105]
[1106]
[1107]
[1108]
[1109]
[1110]
[1111]
[1112]
[1113]
[1114]
[1115]
[1116]
[1117]
[1118]
[1119]
[1120]
[1121]
[1122]
[1123]
[1124]
[1125]
[1126]
[1127]
[1128]
[1129]
[1130]
[1131]
[1132]
[1133]
[1134]
[1135]
[1136]
[1137]
[1138]
[1139]
[1140]
[1141]
[1142]
[1143]
[1144]
[1145]
[1146]
[1147]
[1148]
[1149]
[1150]
[1151]
[1152]
[1153]
[1154]
[{"$f":"A1155+1","v":1155}]
[1156]
[1157]
[1158]
[1159]
[1160]
[1161]
[1162]
[1163]
[1164]
[1165]
[1166]
[1167]
[1168]
[1169]
[1170]
[1171]
[1172]
[1173]
[1174]
[1175]
[1176]
[1177]
[1178]
[1179]
[1180]
[1181]
[1182]
[1183]
[1184]
[1185]
[1186]
[1187]
[1188]
[1189]
[1190]
[1191]
[1192]
[1193]
[1194]
[1195]
[1196]
[1197]
[1198]
[1199]
[1200]
[1201]
[1202]
[1203]
[1204]
[1205]
[1206]
[1207]
[1208]
[1209]
[1210]
[1211]
[1212]
[1213]
[1214]
[1215]
[1216]
[1217]
[1218]
[{"$f":"A1219+1","v":1219}]
[1220]
[1221]
[1222]
[1223]
[1224]
[1225]
[1226]
[1227]
[1228]
[1229]
[1230]
[1231]
[1232]
[1233]
[1234]
[1235]
[1236]
[1237]
[1238]
[1239]
[1240]
[1241]
[1242]
[1243]
[1244]
[1245]
[1246]
[1247]
[1248]
[1249]
[1250]
[1251]
[1252]
[1253]
[1254]
[1255]
[1256]
[1257]
[1258]
[1259]
[1260]
[1261]
[1262]
[1263]
[1264]
[1265]
[1266]
[1267]
[1268]
[1269]
[1270]
[1271]
[1272]
[1273]
[1274]
[1275]
[1276]
[1277]
[1278]
[1279]
[1280]
[1281]
[1282]
[{"$f":"A1283+1","v":1283}]
[1284]
[1285]
[1286]
[1287]
[1288]
[1289]
[1290]
[1291]
[1292]
[1293]
[1294]
[1295]
[1296]
[1297]
[1298]
[1299]
[1300]
[1301]
[1302]
[1303]
[1304]
[1305]
[1306]
[1307]
[1308]
[1309]
[1310]
[1311]
[1312]
[1313]
[1314]
[1315]
[1316]
[1317]
[1318]
[1319]
[1320]
[1321]
[1322]
[1323]
[1324]
[1325]
[1326]
[1327]
[1328]
[1329]
[1330]
[1331]
[1332]
[1333]
[1334]
[1335]
[1336]

{"sheet":"ESCRITURA","index":1,"n_rows":17,"n_cols":25,"rows_kept":17,"cut":false,"hidden":false,"merged":[[4,0,4,22],[0,13,0,17],[0,9,0,12],[0,0,0,8],[3,0,3,22],[2,0,2,23],[0,19,0,21],[24,18,25,19],[24,1,25,2],[19,0,23,21],[12,22,15,22],[18,1,18,3],[17,0,17,22],[9,22,11,22],[9,21,11,21],[9,0,11,20],[12,0,15,20],[5,0,6,20],[7,0,8,20]]}
[null,null,null,null,null,null,null,null,null,"habilitar este contenido",null,null,null,"junio del 2010 por joannostro",null,null,null,null,null,null,null,null,null,{"$f":"RANDBETWEEN(1,152)","v":35}]
[null,null,null,null,null,null,null,null,null,null,null,null,null,null,null,null,null,null,null,null,null,null,null,141]
[{"$f":"VLOOKUP(X2,apuntes!A2:D1148,4,FALSE)","v":"Para introducir una oración explicativa"}]
[{"$f":"VLOOKUP(X2,apuntes!A2:D499,2,FALSE)","v":"Su solicitud, señora Solís, la atenderemos en cuanto nos sea posible."}]
[]
[null,null,null,null,null,null,null,null,null,null,null,null,null,null,null,null,null,null,null,null,null,null,null,0,1]
[]
[{"$f":"VLOOKUP(X2,apuntes!A2:D499,3,FALSE)","v":"Su solicitud señora Solís la atenderemos en cuanto nos sea posible."},null,null,null,null,null,null,null,null,null,null,null,null,null,null,null,null,null,null,null,null,null,null,0,1]
[null,null,null,null,null,null,null,null,null,null,null,null,null,null,null,null,null,null,null,null,null,null,null,{"$f":"D17+G17","v":0}]
[]
[]
[]
[]
[]
[]
[]
[null,null,null,{"$f":"X6","v":0},null,null,{"$f":"X8","v":0},null,null,null,null,{"$f":"IF(X6=0,\"\",D17/X9*100)","v":""},null,null,null,null,null,null,null,null,{"$f":"RANDBETWEEN(1,152)","v":111},118]

{"sheet":"Hoja1","index":2,"n_rows":13,"n_cols":5,"rows_kept":13,"cut":false,"hidden":false,"merged":[[12,4,12,6]]}
[]
[]
[]
[]
[]
[]
[]
[]
[]
[]
[]
[]
[null,null,null,null,"Habilitar este contenido"]